Cogmind - Beta 9.6 @@@ ROGUE MODE // 2020.05.09 @ 13:29:13 Player: 3.14 Result: Heading to fleet! Performance ------------- Evolutions (9) 4500 Regions Visited (22) 4400 Robots Destroyed (503) 2515 Value Destroyed (28532) 28532 Prototype IDs (29) 580 Alien Tech Used (7) 1400 Bonus (24394) 24394 TOTAL SCORE: 66321 Bonus ------- Triggered High Security 1000 High Alert Combat Kills 13535 Follower Combat Kills 175 Met Data Miner 300 Met Warlord at Base 500 MAIN.C Attacked Warlord 500 Warlord Defense Kill 464 Used Core Reset Matrix 3000 Met Warlord at Research 2000 Win 3000 Friendly Fire -80 Cogmind --------- Core Integrity 1380/1600 Matter 264/300 Energy 38/100 System Corruption 5% Temperature Cool (0) Movement Core (50) Location To Fleet Rendezvous Parts ------- > --- POWER (4) -------- (None) > --- PROPULSION (6) --- Megatreads > --- UTILITY (14) ----- Experimental Cooling System Advanced Signal Interpreter Experimental Signal Interpreter Experimental Target Analyzer Advanced Core Analyzer Improved System Backup Module > --- WEAPON (2) ------- (None) > --- INVENTORY (4) ---- Matter Drive Peak State ------------ > --- POWER ------------ Reinforced Antimatter Reactor Quantum Reactor Reinforced Quantum Reactor Reinforced Quantum Reactor > --- PROPULSION ------- Megatreads > --- UTILITY ---------- Advanced Cooling System Experimental Cooling System Humpback Experimental Signal Interpreter Advanced Targeting Computer Experimental Target Analyzer Advanced Core Analyzer Improved Particle Charger Quantum Capacitor Centrium Medium Armor Plating Experimental Focal Shield Experimental Force Field > --- WEAPON ----------- Gamma Rifle Enhanced Force Lance > --- INVENTORY -------- Light Quantum Reactor Light Quantum Reactor Enhanced Armored Medium Treads Armored Heavy Treads Armored Heavy Treads Advanced Sensor Array Advanced Thermal Shield Experimental Shield Generator Experimental Force Field Advanced Dynamic Insulation System Subatomic Replicator Matter Drive Cooled Particle Cannon Enhanced Nova Cannon Core Cannon Micro-nuke Launcher Sigix Terminator Core Stripper [Rating: 212] Favorites ----------- Power Reinforced Deuterium Engine Engine Reinforced Deuterium Engine Power Core Neutrino Core Reactor Vortex Chain Reactor Propulsion Improved Medium Treads Treads Improved Medium Treads Utility Humpback Device Advanced Sensor Array Storage Humpback Processor Advanced Signal Interpreter Hackware System Shield Protection Heavy Reactive Plating Artifact Matter Drive Weapon Proton Cannon Energy Gun Gamma Rifle Energy Cannon Proton Cannon Ballistic Gun Assault Rifle Launcher Rocket Launcher Special Weapon Stasis Beam Slashing Weapon Phasing Sabre Piercing Weapon Enhanced Force Lance Build | -11 -10 -10 -10 -9 -8 -7 -6 -6 -6 -6 -5 -5 -5 -5 -5 -4 -4 -3 -3 -2 -1 -1 ------- Run | Scr Mat Min Exi Min Mat Fac Fac Low Low Dat Pro Fac Upp Upp War Pro Fac Res Qua Res Acc Com Slots Evolved 18 | . . . . . 4 2 2 . . . . 2 . . . . 2 2 . 2 2 . Power 3 | . . . . . . . 1 . . . . . . . . . . . . 1 1 . Propulsion 4 | . . . . . 2 2 . . . . . . . . . . . . . . . . Utility 11 | . . . . . 2 . 1 . . . . 2 . . . . 2 2 . 1 1 . Weapon . | . . . . . . . . . . . . . . . . . . . . . . . Parts Attached 468 | 7 3 . 3 1 20 29 10 7 12 2 9 13 14 30 16 40 29 47 79 27 55 15 Power 32 | 1 . . . . 1 1 1 . 2 . . . 1 1 4 2 1 . 6 6 5 . Engine 12 | 1 . . . . 1 1 1 . 2 . . . 1 1 2 2 . . . . . . Core 1 | . . . . . . . . . . . . . . . . . . . . 1 . . Reactor 19 | . . . . . . . . . . . . . . . 2 . 1 . 6 5 5 . Propulsion 56 | 2 . . . . 5 8 2 . 4 . . . 1 3 5 4 4 6 8 4 . . Treads 56 | 2 . . . . 5 8 2 . 4 . . . 1 3 5 4 4 6 8 4 . . Leg . | . . . . . . . . . . . . . . . . . . . . . . . Wheel . | . . . . . . . . . . . . . . . . . . . . . . . Hover . | . . . . . . . . . . . . . . . . . . . . . . . Flight . | . . . . . . . . . . . . . . . . . . . . . . . Utility 236 | 2 . . 3 . 5 6 4 4 5 1 1 10 8 12 7 24 16 27 45 13 32 11 Device 163 | . . . . . 2 2 2 2 4 1 1 5 7 11 4 19 12 22 30 10 27 2 Storage 13 | 2 . . 3 . 2 1 . 1 . . . 1 . . 1 . . . 1 1 . . Processor 10 | . . . . . . 2 . . . . . . . . . . 1 . 5 1 . 1 Hackware 2 | . . . . . . . . . . . . . . . . . . 2 . . . . Protection 39 | . . . . . 1 1 2 1 1 . . 4 1 1 2 5 3 3 7 1 5 1 Artifact 9 | . . . . . . . . . . . . . . . . . . . 2 . . 7 Weapon 144 | 2 3 . . 1 9 14 3 3 1 1 8 3 4 14 . 10 8 14 20 4 18 4 Energy Gun 22 | 1 . . . . 2 . 1 . . . . . . . . . 1 5 5 1 6 . Energy Cannon 77 | . . . . . . 10 1 2 . . 5 2 1 10 . 10 6 7 12 2 7 2 Ballistic Gun 11 | 1 3 . . 1 5 . . . . . . . . . . . . . 1 . . . Ballistic Cannon . | . . . . . . . . . . . . . . . . . . . . . . . Launcher 15 | . . . . . 1 2 . . . 1 2 . 1 2 . . . . . . 5 1 Special Weapon 1 | . . . . . . . . . . . . . . . . . . . . . . 1 Impact Weapon . | . . . . . . . . . . . . . . . . . . . . . . . Slashing Weapon 13 | . . . . . 1 2 1 1 1 . 1 1 2 2 . . 1 . . . . . Piercing Weapon 5 | . . . . . . . . . . . . . . . . . . 2 2 1 . . Special Melee Weapon . | . . . . . . . . . . . . . . . . . . . . . . . Unidentified Prototypes 24 | . . . . . . 1 1 . . . . . 1 . 3 . . 2 11 5 . . Parts Lost 10 | . . . . 1 . 1 . . 1 . . . . . . 1 . 2 3 . 1 . Power 1 | . . . . . . . . . . . . . . . . . . . 1 . . . Propulsion 2 | . . . . . . 1 . . 1 . . . . . . . . . . . . . Utility 4 | . . . . . . . . . . . . . . . . . . 2 1 . 1 . Weapon 3 | . . . . 1 . . . . . . . . . . . 1 . . 1 . . . Highest Loss Streak 2 | . . . . 1 . 1 . . 1 . . . . . . 1 . 2 2 . 1 . Average Slot Usage (%) 80 | . 100 100 97 85 89 91 93 92 92 93 93 91 88 88 85 83 69 66 71 77 68 26 Engine 6 | . 14 14 14 14 9 7 13 13 13 13 13 11 11 11 6 10 1 . . . . . Reactor 3 | . . . . . . . . . . . . . . . 1 . 4 4 6 11 14 . Treads 24 | . 28 28 28 28 35 45 40 40 39 40 40 35 34 33 33 28 17 13 12 10 3 3 Device 13 | . . . . . 9 6 6 5 6 6 6 12 13 15 16 14 19 21 20 19 20 7 Storage 6 | . 28 28 25 14 16 7 6 6 6 6 6 5 5 5 5 5 5 4 4 4 2 . Processor 7 | . . . . . . 6 6 6 6 6 6 5 5 5 5 5 5 4 13 16 12 14 Protection 4 | . . . . . 1 . 6 6 6 6 6 7 5 5 4 7 5 6 3 4 3 . Energy Cannon 5 | . . . . . . 9 9 9 11 6 11 9 10 7 11 11 5 1 2 1 1 . Ballistic Gun 3 | . 21 28 28 28 15 . . . . . . . . . . . . . . . . . Slashing Weapon 1 | . . . . . . 3 3 3 1 6 . 1 . 1 . . 4 2 . . . . Piercing Weapon 1 | . . . . . . . . . . . . . . . . . . 1 3 4 2 . Naked Turns . | . . . . . . . . . . . . . . . . . . . . . . . Heaviest Build 257 | 15 17 17 89 89 124 106 117 120 136 131 135 164 166 166 185 174 188 199 164 184 257 13 Greatest Support 600 | 40 40 40 40 40 82 130 140 140 166 166 166 166 166 168 168 194 215 215 220 600 600 600 Greatest Overweight (x) 4 | . . . 2 2 2 . . . . . . . . . 1 1 1 1 . . . 4 Average Overweight (x) . | . . . . 2 1 . . . . . . . . . . . . . . . . . Largest Inventory Capacity 44 | 8 8 8 24 24 32 32 24 44 24 24 24 44 24 24 44 24 24 24 44 24 24 4 Average Capacity 23 | 5 8 8 13 24 29 24 24 24 24 24 24 24 24 24 24 24 24 24 24 24 23 4 Most Carried 32 | 4 8 8 16 19 32 31 24 24 24 24 24 24 24 24 24 24 24 24 24 24 24 4 Average Carried 22 | 2 6 8 11 17 28 24 23 23 23 24 24 23 23 24 23 23 23 23 23 23 22 2 Final Capacity 32 | 8 8 8 24 24 32 24 24 24 24 24 24 24 24 24 24 24 24 24 24 24 4 4 Final Carried 32 | 4 8 8 16 18 32 24 24 24 24 24 24 24 24 24 24 22 24 21 23 24 4 2 Class Distribution -------------------- 52% | Scavenger-Mutant 39% | Hauler-Mutant 6% | Mutant Dominant Class ---------------- Mutant | -10/Materials Mutant | -10/Mines Mutant | -10/Exiles Hauler-Mutant | -9/Mines Hauler-Mutant | -8/Materials Hauler-Mutant | -7/Factory Hauler-Mutant | -6/Factory Hauler-Mutant | -6/Lower Caves Scavenger-Mutant | -6/Lower Caves Scavenger-Mutant | -6/Data Miner Scavenger-Mutant | -5/Proximity Caves Scavenger-Mutant | -5/Factory Scavenger-Mutant | -5/Upper Caves Scavenger-Mutant | -5/Upper Caves Scavenger-Mutant | -5/Warlord Scavenger-Mutant | -4/Proximity Caves Scavenger-Mutant | -4/Factory Hauler-Mutant | -3/Research Hauler-Mutant | -3/Quarantine Scavenger-Mutant | -2/Research Scavenger-Mutant | -1/Access Scavenger-Mutant | -1/Command Resources | -11 -10 -10 -10 -9 -8 -7 -6 -6 -6 -6 -5 -5 -5 -5 -5 -4 -4 -3 -3 -2 -1 -1 ----------- Run | Scr Mat Min Exi Min Mat Fac Fac Low Low Dat Pro Fac Upp Upp War Pro Fac Res Qua Res Acc Com Matter Collected 5822 | 273 149 . . 96 304 303 198 70 115 . 179 139 150 429 160 381 290 390 972 209 862 153 Remotely . | . . . . . . . . . . . . . . . . . . . . . . . Salvage Created 18327 | 91 333 . . 29 653 885 225 215 100 . 44 377 233 714 221 1426 1381 2242 2596 1224 5338 . Parts 830 | 4 29 . . 5 35 40 2 3 11 . 10 15 13 40 9 49 50 97 152 33 233 . Haulers Intercepted 7 | . . . . . 3 . . . . . . . . . . . . 2 . 2 . . Recyclers Shooed 11 | . 2 . . . 2 1 2 . . . . . . . . . 3 1 . . . . Parts Field Recycled . | . . . . . . . . . . . . . . . . . . . . . . . Retrieved Matter . | . . . . . . . . . . . . . . . . . . . . . . . Parts Self-Destructed 97 | . . . . . . . . . . . 6 . 3 24 56 8 . . . . . . Prevented 99 | . . . . . . . . 3 11 . . . 13 24 7 41 . . . . . . Kills | -11 -10 -10 -10 -9 -8 -7 -6 -6 -6 -6 -5 -5 -5 -5 -5 -4 -4 -3 -3 -2 -1 -1 ------- Run | Scr Mat Min Exi Min Mat Fac Fac Low Low Dat Pro Fac Upp Upp War Pro Fac Res Qua Res Acc Com Combat Hostiles Destroyed 418 | . 11 . . 2 10 10 1 3 1 . 8 5 2 17 4 18 15 24 39 4 70 174 Melee 5 | . . . . . . 1 . . . . . . . . . . . . 3 . 1 . Guns 49 | . 11 . . 2 9 . . . . . . . . . . . . 5 2 2 18 . Cannons 79 | . . . . . . 3 . . . . . 3 1 3 . 9 11 9 29 . 11 . AOE 222 | . . . . . 1 6 . . . . 8 . . 9 3 1 . 1 . . 19 174 Classes Destroyed 25 | 1 2 . . . 5 4 . . 1 . . . 1 . 3 1 1 . 1 3 . 2 Worker 13 | . . . . . . 1 . . . . . 2 . . . . . . . . 10 . Builder 10 | . . . . . 2 2 . . . . . . . . . . . 1 . . 5 . Tunneler 2 | . . . . . . 1 . . . . . . . . . . . . . . 1 . Hauler 7 | . . . . . 3 . . . . . . . . . . . . 2 . 2 . . Recycler 14 | 1 . . . . . 7 1 . . . . . . . . . 2 . 1 . 2 . Carrier 18 | . . . . . . . . . . . . . . . . . . . . . . 18 Operator 2 | . . . . . . . . . . . . . . . . . 1 1 . . . . Watcher 15 | . . . . . . 1 . . . . . . . . . . . 5 3 2 2 2 Swarmer 73 | . 3 . . 2 . 7 . . . . 8 . . 5 . 1 . . 6 . 17 24 Saboteur 14 | . . . . . . . . . . . . . . . 1 . . . . . 1 12 Grunt 140 | . 8 . . . 3 2 . 3 . . . 5 . 7 1 10 6 7 8 1 31 48 Brawler 14 | . . . . . . . . . . . . . . . . 1 . . . . 1 12 Duelist 17 | . . . . . 1 . . . . . . . . . . . 1 1 . . 2 12 Protector 7 | . . . . . . . . . . . . . . . 1 . . . . . . 6 Sentry 15 | . . . . . 4 . 1 . . . . . 1 . . 1 2 1 1 1 3 . Demolisher 7 | . . . . . . . . . . . . . . . . . . . . 1 . 6 Specialist 6 | . . . . . . . . . . . . . . . . . . . . . . 6 Hunter 45 | . . . . . 2 . . . . . . . . 3 . 2 . 6 3 . 5 24 Programmer 70 | . . . . . . 1 . . . . . . . 1 . 2 5 8 20 . 9 24 Behemoth 7 | . . . . . . . . . 1 . . . 1 1 . 1 1 1 . . 1 . Striker 1 | . . . . . . . . . . . . . . . . . . . . 1 . . Executioner 1 | . . . . . . . . . . . . . . . 1 . . . . . . . Alpha 7 1 | . . . . . . . . . . . . . . . . . . . 1 . . . Samaritan 3 | . . . . . . . . . . . . . 1 . . . . . . 2 . . Borebot 1 | . . . . . . . . . . . . . . . . . . . . 1 . . Best Kill Streak 194 | 1 6 . . 1 3 10 1 3 1 . 4 4 1 5 4 4 6 9 5 3 21 194 Combat Bots Only 174 | . 6 . . 1 2 4 1 3 1 . 4 3 1 5 4 4 5 7 4 3 16 174 Max Kills in Single Turn 194 | 1 1 . . 1 1 4 1 1 1 . 2 1 1 3 3 1 1 1 1 1 7 194 Gunslinging . | . . . . . . . . . . . . . . . . . . . . . . . Exploded 174 | . . . . . 1 3 . . . . 2 . . 3 3 1 . 1 . . 6 174 Melee 1 | . . . . . . 1 . . . . . . . . . . . . 1 . 1 . Uniques/NPCs Destroyed . | . . . . . . . . . . . . . . . . . . . . . . . Combat | -11 -10 -10 -10 -9 -8 -7 -6 -6 -6 -6 -5 -5 -5 -5 -5 -4 -4 -3 -3 -2 -1 -1 -------- Run | Scr Mat Min Exi Min Mat Fac Fac Low Low Dat Pro Fac Upp Upp War Pro Fac Res Qua Res Acc Com Damage Taken 16353 | . 376 . . 109 616 436 136 168 234 . 74 193 181 788 87 1529 553 2236 3413 121 3488 1615 Core 1045 | . 47 . . 26 53 61 8 . . . . . 19 61 . 83 98 151 218 . 171 49 Absorbed by Shields 2720 | . . . . . . . . . . . . . . . 1 . . . 7 44 2621 47 Reduced by Siege Mode 517 | . . . . . . . . . . . . . . . . . . 92 42 . 383 . Core Remaining (%) 88 | 100 . . . 70 90 91 . . . . 99 . . . . 83 91 . 71 100 . 86 Volleys Fired 956 | 3 38 . . 6 48 29 16 7 6 . 10 10 9 35 2 53 55 141 163 83 241 1 Largest 2 | 2 2 . . 2 2 2 2 2 2 . 1 2 2 2 2 2 2 1 2 1 1 1 Hottest 204 | 60 60 . . 40 79 120 105 150 150 . 33 150 150 180 150 180 150 113 204 120 120 . Shots Fired 1164 | 6 76 . . 12 78 49 21 14 12 . 10 20 18 57 4 92 64 141 166 83 240 1 Gun 472 | 6 76 . . 12 74 . . . . . . . . . . . . 75 22 34 173 . Cannon 650 | . . . . . . 43 21 14 12 . . 20 18 48 4 92 64 66 144 49 55 . Launcher 42 | . . . . . 4 6 . . . . 10 . . 9 . . . . . . 12 1 Special . | . . . . . . . . . . . . . . . . . . . . . . . Kinetic 130 | 3 60 . . 12 55 . . . . . . . . . . . . . . . . . Thermal 381 | 3 16 . . . 5 43 21 . . . . . . 10 . 16 12 40 110 49 55 1 Explosive 41 | . . . . . 4 6 . . . . 10 . . 9 . . . . . . 12 . Electromagnetic 612 | . . . . . 14 . . 14 12 . . 20 18 38 4 76 52 101 56 34 173 . Robot Hit Streak 32 | 3 14 . . 11 18 19 10 6 18 . . 5 12 17 10 20 14 21 32 27 25 . Robot Miss Streak 4 | 1 2 . . 3 1 1 2 1 . . 3 3 1 2 . 3 1 3 3 2 4 . Penetration Max . | . . . . . . . . . . . . . . . . . . . . . . . Secondary Targets 1 | . . . . 1 . . . . . . . . . . . . . . . . . . Max Gunslinging Chain 1 | . . . . 1 . . . . . . . . . . . . . . . . . . Capacitor 648 | . . . . . . . . . . . . . . . . . 39 134 164 83 228 . Shots Hit Robots 956 | 5 57 . . 8 65 38 16 12 12 . . 15 16 44 4 69 51 116 149 81 198 . Core Hits 632 | 2 18 . . 2 32 27 3 1 3 . 12 9 2 30 5 27 25 42 59 23 146 164 Critical Hits 69 | . 1 . . 1 2 . 1 1 . . . . 1 1 . 2 3 2 16 9 29 . Critical Kills 25 | . 1 . . . 1 . . . . . . . . . . 2 . 2 5 1 13 . Critical Parts Destroyed 35 | . . . . 1 1 . 1 1 . . . . 1 1 . . 2 . 9 6 12 . Melee Attacks 141 | . . . . . 1 25 6 1 3 . 3 2 1 10 . . 4 24 37 8 16 . Impact . | . . . . . . . . . . . . . . . . . . . . . . . Slashing 70 | . . . . . 1 25 6 1 3 . 3 2 1 10 . . 4 14 . . . . Piercing 71 | . . . . . . . . . . . . . . . . . . 10 37 8 16 . Sneak Attacks 16 | . . . . . . . 1 . . . . 1 . 1 . . 2 . 2 6 3 . Combat Hostiles . | . . . . . . . . . . . . . . . . . . . . . . . Follow-up Attacks . | . . . . . . . . . . . . . . . . . . . . . . . Damage Inflicted 285997 | 46 671 . . 94 1250 1507 548 406 233 . 731 678 428 2276 534 2267 2161 4643 7849 3550 10948 245177 Guns 9154 | 46 671 . . 94 733 . . . . . . . . . . . . 1943 462 765 4440 . Cannons 21099 | . . . . . . 907 427 406 233 . . 468 377 1107 110 2224 1873 2443 6506 2047 1971 . Explosions 252494 | . . . . . 402 564 . . . . 731 83 40 1072 424 43 . 143 79 . 3739 245174 Melee 3042 | . . . . . . 30 117 . . . . 108 . 97 . . 250 114 790 738 798 . Ramming 208 | . . . . . 115 6 4 . . . . 19 11 . . . 38 . 12 . . 3 Kinetic 1137 | 24 553 . . 94 466 . . . . . . . . . . . . . . . . . Thermal 260449 | 22 118 . . . 95 907 427 . . . . 83 40 230 424 460 472 2023 5401 2047 2526 245174 Explosive 5929 | . . . . . 378 564 . . . . 731 . . 1072 . . . . . . 3184 . Electromagnetic 15232 | . . . . . 196 . . 406 233 . . 468 377 877 110 1807 1401 2506 1646 765 4440 . Impact . | . . . . . . . . . . . . . . . . . . . . . . . Slashing 716 | . . . . . . 30 117 . . . . 108 . 97 . . 250 114 . . . . Piercing 2326 | . . . . . . . . . . . . . . . . . . . 790 738 798 . Highest Corruption 9 | . . . . . . 1 . . . . . . . 2 2 3 1 9 9 . 6 6 Average Corruption 4 | . . . . . . 1 . . . . . . . 1 1 1 1 3 5 . 4 5 Corruption Purged 12 | . . . . . . . . . . . . . . 2 . 2 . . 7 . . 1 Effects 138 | . . . . . . 2 . . . . . . . 2 1 11 . 17 59 . 37 9 Message Errors 36 | . . . . . . . . . . . . . . 1 . 1 . 5 17 . 9 3 Matter Fused 23 | . . . . . . . . . . . . . . . . 1 . 3 11 . 6 2 Heat Flow Errors 11 | . . . . . . . . . . . . . . . 1 2 . 1 4 . 2 1 Energy Discharges 17 | . . . . . . 1 . . . . . . . 1 . 3 . 3 6 . 2 1 Parts Rejected 1 | . . . . . . . . . . . . . . . . . . . 1 . . . Data Loss (minor) 18 | . . . . . . 1 . . . . . . . . . 3 . 2 9 . 2 1 Data Loss (major) 6 | . . . . . . . . . . . . . . . . . . . 1 . 4 1 Misfires 3 | . . . . . . . . . . . . . . . . . . . 3 . . . Targeting Errors 21 | . . . . . . . . . . . . . . . . 1 . 3 6 . 11 . Weapon Failures 2 | . . . . . . . . . . . . . . . . . . . 1 . 1 . Overload Shots 2 | . . . . . . . . . . . . . . . . . . 2 . . . . Overflow Damage 40505 | . . . . . 13 91 162 23 . . 46 24 37 77 . 10 80 228 577 . 558 38579 Projectiles 1103 | . . . . . . 81 75 23 . . . 6 31 14 . 10 17 224 485 . 137 . Explosions 38787 | . . . . . 4 10 . . . . 46 18 . 6 . . . . . . 124 38579 Melee 615 | . . . . . 9 . 87 . . . . . 6 57 . . 63 4 92 . 297 . Knockbacks . | . . . . . . . . . . . . . . . . . . . . . . . Impact . | . . . . . . . . . . . . . . . . . . . . . . . Kinetic . | . . . . . . . . . . . . . . . . . . . . . . . Secondary . | . . . . . . . . . . . . . . . . . . . . . . . Self-Inflicted Damage 1623 | . . . . . 59 102 . . . . . . . 30 . . . . 76 . 95 1261 Shots 11 | . . . . . 3 3 . . . . . . . 1 . . . . 1 . 2 1 Rammed 14 | . . . . . 6 1 1 . . . . 1 1 . . . 1 . 2 . . 1 Targets Rammed 16 | . . . . . 7 2 1 . . . . 1 1 . . . 1 . 2 . . 1 Kicked . | . . . . . . . . . . . . . . . . . . . . . . . Crushed 2 | . . . . . 1 1 . . . . . . . . . . . . . . . . Highest Temperature 440 | 20 90 . . . . 36 14 222 180 . 48 314 203 196 140 397 140 246 433 256 440 148 Average Temperature 81 | 13 41 . . . . 14 9 91 76 . 20 111 81 47 69 100 40 57 106 57 94 80 Received Heat Transfer 2093 | . 186 . . . 207 18 54 66 24 . . 90 24 186 9 282 90 285 192 . 332 48 Effects 19 | . . . . . . . . . . . . 1 . . . 1 . 1 . . 16 . Shutdowns 7 | . . . . . . . . . . . . . . . . . . . . . 7 . Energy Bleed 6 | . . . . . . . . . . . . 1 . . . . . 1 . . 4 . Interference 6 | . . . . . . . . . . . . . . . . 1 . . . . 5 . Siege Activations 14 | . . . . . . . . . . . . . . . . . 1 4 4 . 5 . Total Turns 305 | . . . . . . . . . . . . . . . . . 13 67 94 . 131 . Longest Duration 40 | . . . . . . . . . . . . . . . . . 13 26 40 . 30 . Robots Corrupted 73 | . . . . . . . . 3 1 . . 2 2 5 1 8 5 13 6 5 22 . Combat Hostiles 62 | . . . . . . . . 3 1 . . 2 1 5 1 8 4 9 5 2 21 . Parts Fried 159 | . . . . . . . . 4 2 . . 5 5 5 1 24 13 30 20 10 40 . Impact Corruptions 3 | . . . . . 2 . . . . . . . 1 . . . . . . . . . Robots Melted 1 | . . . . . . . 1 . . . . . . . . . . . . . . . Combat Hostiles 1 | . . . . . . . 1 . . . . . . . . . . . . . . . Parts Melted 14 | . . . . . . 1 2 . . . . . . . 1 1 . . . 4 5 . Heat Transferred 10426 | 50 275 . . . 235 1295 592 . . . . 50 50 222 250 407 333 1275 2866 271 1695 560 Parts Sabotaged . | . . . . . . . . . . . . . . . . . . . . . . . Parts Stolen . | . . . . . . . . . . . . . . . . . . . . . . . Parts Stripped . | . . . . . . . . . . . . . . . . . . . . . . . Power Chain Reactions 9 | . . . . . 1 . . . . . . 1 1 . 1 1 . 1 1 . 2 . Missiles Intercepted . | . . . . . . . . . . . . . . . . . . . . . . . Alert | -11 -10 -10 -10 -9 -8 -7 -6 -6 -6 -6 -5 -5 -5 -5 -5 -4 -4 -3 -3 -2 -1 -1 ------- Run | Scr Mat Min Exi Min Mat Fac Fac Low Low Dat Pro Fac Upp Upp War Pro Fac Res Qua Res Acc Com Peak Influence 1641 | 5 323 125 . 198 207 438 215 . . . . 292 . . . . 241 517 376 259 1641 1130 Average Influence 213 | 1 97 125 . 37 84 193 136 . . . . 206 . . . . 111 292 183 112 416 1105 Maximum Alert Level 5 | . 1 . . . 1 2 1 . . . . 1 . . . . 1 2 1 1 5 5 Low Security (%) 63 | 100 76 100 . 100 99 56 81 . . . . 54 . . . . 97 36 49 66 66 . Level 1 25 | . 23 . . . . 34 18 . . . . 45 . . . . 2 34 50 33 2 . Level 2 4 | . . . . . . 8 . . . . . . . . . . . 28 . . 5 . Level 3 . | . . . . . . . . . . . . . . . . . . . . . 6 . Level 4 4 | . . . . . . . . . . . . . . . . . . . . . 16 65 Level 5 1 | . . . . . . . . . . . . . . . . . . . . . . 34 High Security . | . . . . . . . . . . . . . . . . . . . . . 2 . Max Security . | . . . . . . . . . . . . . . . . . . . . . . . Squads Dispatched 44 | . 3 . . . 2 4 . . . . . . . . . . 3 7 10 1 11 3 Investigation 5 | . 2 . . . . 2 . . . . . . . . . . . 1 . . . . Extermination 17 | . . . . . . 1 . . . . . . . . . . 2 3 7 . 3 1 Reinforcement 11 | . 1 . . . 2 1 . . . . . . . . . . 1 1 . 1 3 1 Assault 5 | . . . . . . . . . . . . . . . . . . 2 . . 2 1 Garrison 6 | . . . . . . . . . . . . . . . . . . . 3 . 3 . Intercept . | . . . . . . . . . . . . . . . . . . . . . . . Construction Impeded 5 | . . . . . 1 . . . . . . . . . . . . 1 . . 3 . Haulers Reinforced 1 | . . . . . . . . . . . . . . . . . . . . 1 . . Stealth | -11 -10 -10 -10 -9 -8 -7 -6 -6 -6 -6 -5 -5 -5 -5 -5 -4 -4 -3 -3 -2 -1 -1 --------- Run | Scr Mat Min Exi Min Mat Fac Fac Low Low Dat Pro Fac Upp Upp War Pro Fac Res Qua Res Acc Com Distress Signals 20 | . 1 . . . 1 1 1 . . . . . . . . . 1 2 . 11 . 2 Communications Jammed . | . . . . . . . . . . . . . . . . . . . . . . . Distress Signals . | . . . . . . . . . . . . . . . . . . . . . . . Times Spotted 364 | . 19 . . 10 22 11 1 3 2 . 6 7 2 14 43 20 17 38 49 8 79 13 Peak Tracking Total 12 | . 8 . . 3 4 5 1 3 1 . 4 5 1 5 12 4 5 9 4 2 11 7 Tactical Retreats 19 | . . . . . 1 . . . 1 . . 2 . . 3 1 . 1 6 . 1 3 Traps | -11 -10 -10 -10 -9 -8 -7 -6 -6 -6 -6 -5 -5 -5 -5 -5 -4 -4 -3 -3 -2 -1 -1 ------- Run | Scr Mat Min Exi Min Mat Fac Fac Low Low Dat Pro Fac Upp Upp War Pro Fac Res Qua Res Acc Com Traps Triggered 6 | . 1 . . . . 4 . . . . . . . . . . . . . . . 1 Indirectly . | . . . . . . . . . . . . . . . . . . . . . . . Trap Hack Attempts . | . . . . . . . . . . . . . . . . . . . . . . . Triggered . | . . . . . . . . . . . . . . . . . . . . . . . Disarmed . | . . . . . . . . . . . . . . . . . . . . . . . Reprogrammed . | . . . . . . . . . . . . . . . . . . . . . . . Reused . | . . . . . . . . . . . . . . . . . . . . . . . Traps Extracted . | . . . . . . . . . . . . . . . . . . . . . . . Installed . | . . . . . . . . . . . . . . . . . . . . . . . Triggered 7 | . . . . . . . . . . . . . . 1 6 . . . . . . . Machines | -11 -10 -10 -10 -9 -8 -7 -6 -6 -6 -6 -5 -5 -5 -5 -5 -4 -4 -3 -3 -2 -1 -1 ---------- Run | Scr Mat Min Exi Min Mat Fac Fac Low Low Dat Pro Fac Upp Upp War Pro Fac Res Qua Res Acc Com Machines Disabled 23 | . . . . . 2 1 . . . . . 1 . . . . . 3 11 . 4 1 Max in Single Turn 2 | . . . . . 2 1 . . . . . 1 . . . . . 1 1 . 1 1 Garrison Access 2 | . . . . . . 1 . . . . . . . . . . . . 1 . . . Energy Cycler 2 | . . . . . . . . . . . . . . . . . . . . . 2 . Machines Sabotaged . | . . . . . . . . . . . . . . . . . . . . . . . Garrisons Compromised . | . . . . . . . . . . . . . . . . . . . . . . . Overloaded Fab Kills . | . . . . . . . . . . . . . . . . . . . . . . . Fab Network Shutdowns . | . . . . . . . . . . . . . . . . . . . . . . . Hacking | -11 -10 -10 -10 -9 -8 -7 -6 -6 -6 -6 -5 -5 -5 -5 -5 -4 -4 -3 -3 -2 -1 -1 --------- Run | Scr Mat Min Exi Min Mat Fac Fac Low Low Dat Pro Fac Upp Upp War Pro Fac Res Qua Res Acc Com Machines Accessed 49 | . 4 . 1 . 8 8 2 1 . 4 . 3 . . . . 3 4 10 . 1 . Terminals 31 | . 3 . . . 6 5 2 . . . . 2 . . . . 1 3 8 . 1 . Fabricators 2 | . . . . . . . . . . . . 1 . . . . . 1 . . . . Repair Stations 4 | . . . . . . 2 . . . . . . . . . . 1 . 1 . . . Recycling Units 1 | . 1 . . . . . . . . . . . . . . . . . . . . . Scanalyzers 2 | . . . . . 2 . . . . . . . . . . . . . . . . . Garrison Access 3 | . . . . . . 1 . . . . . . . . . . 1 . 1 . . . Total Hacks 141 | . 8 . 1 . 28 17 5 1 . 28 . 7 . . . . 6 12 26 . 2 . Successful 75 | . 5 . 1 . 12 11 2 1 . 28 . 4 . . . . . 5 5 . 1 . Failed 66 | . 3 . . . 16 6 3 . . . . 3 . . . . 6 7 21 . 1 . Catastrophic 16 | . 3 . . . . 1 1 . . . . 1 . . . . 2 1 6 . 1 . Database Lockouts . | . . . . . . . . . . . . . . . . . . . . . . . Manual 72 | . 7 . . . 22 6 3 . . . . 2 . . 1 . 3 8 18 . 2 . Terminals 85 | . 6 . . . 22 10 5 . . . . 4 . . . . 3 10 23 . 2 . Fabricators 5 | . . . . . . . . . . . . 3 . . . . . 2 . . . . Repair Stations 9 | . . . . . . 6 . . . . . . . . . . 1 . 2 . . . Recycling Units 2 | . 2 . . . . . . . . . . . . . . . . . . . . . Scanalyzers 6 | . . . . . 6 . . . . . . . . . . . . . . . . . Garrison Access 4 | . . . . . . 1 . . . . . . . . . . 2 . 1 . . . Terminal Hacks 44 | . . . 1 . 2 2 1 1 . 28 . 1 . . . . . 3 4 . 1 . Record 12 | . . . 1 . . . . . . 11 . . . . . . . . . . . . Part Schematic 8 | . . . . . . . . . . 7 . 1 . . . . . . . . . . Robot Schematic 7 | . . . . . . . . . . 7 . . . . . . . . . . . . Prototype ID Bank 4 | . . . . . . . . . . 3 . . . . . . . 1 . . . . Open Door 2 | . . . . . . . . 1 . . . . . . . . . . 1 . . . Branch Access Points 1 | . . . . . . . . . . . . . . . . . . 1 . . . . Alert Level 1 | . . . . . . . . . . . . . . . . . . . 1 . . . Unreport Threat 7 | . . . . . 2 . 1 . . . . . . . . . . 1 2 . 1 . Locate Traps 1 | . . . . . . 1 . . . . . . . . . . . . . . . . Zone Layout 1 | . . . . . . 1 . . . . . . . . . . . . . . . . Fabricator Hacks 2 | . . . . . . . . . . . . 2 . . . . . . . . . . Load Schematic 1 | . . . . . . . . . . . . 1 . . . . . . . . . . Build 1 | . . . . . . . . . . . . 1 . . . . . . . . . . Repair Station Hacks 6 | . . . . . . 6 . . . . . . . . . . . . . . . . Scan Component 3 | . . . . . . 3 . . . . . . . . . . . . . . . . Repair 3 | . . . . . . 3 . . . . . . . . . . . . . . . . Recycling Unit Hacks 1 | . 1 . . . . . . . . . . . . . . . . . . . . . Retrieve Components 1 | . 1 . . . . . . . . . . . . . . . . . . . . . Scanalyzer 6 | . . . . . 6 . . . . . . . . . . . . . . . . . Insert Component 3 | . . . . . 3 . . . . . . . . . . . . . . . . . Analyze 3 | . . . . . 3 . . . . . . . . . . . . . . . . . Garrison Access Hacks 1 | . . . . . . . . . . . . . . . . . . . 1 . . . Seal Access 1 | . . . . . . . . . . . . . . . . . . . 1 . . . Unauthorized Hacks 15 | . 4 . . . 4 3 1 . . . . 1 . . . . . 2 . . . . Terminals 13 | . 3 . . . 4 2 1 . . . . 1 . . . . . 2 . . . . Track 1 | . . . . . . . . . . . . . . . . . . 1 . . . . Assimilate 1 | . . . . . . 1 . . . . . . . . . . . . . . . . Botnet 11 | . 3 . . . 4 1 1 . . . . 1 . . . . . 1 . . . . Fabricators . | . . . . . . . . . . . . . . . . . . . . . . . Repair Stations . | . . . . . . . . . . . . . . . . . . . . . . . Recycling Units 1 | . 1 . . . . . . . . . . . . . . . . . . . . . Tunnel 1 | . 1 . . . . . . . . . . . . . . . . . . . . . Scanalyzers . | . . . . . . . . . . . . . . . . . . . . . . . Garrison Access 1 | . . . . . . 1 . . . . . . . . . . . . . . . . Jam 1 | . . . . . . 1 . . . . . . . . . . . . . . . . Data Cores Recovered 1 | . . . . . . . . . . . . . . . . . . 1 . . . . Used 1 | . . . . . . . . . . . . . . . . . . 1 . . . . Hacking Detections 39 | . 3 . . . 8 7 2 . . . . 2 . . . . 3 4 9 . 1 . Full Trace Events . | . . . . . . . . . . . . . . . . . . . . . . . Feedback Events . | . . . . . . . . . . . . . . . . . . . . . . . Feedback Blocked . | . . . . . . . . . . . . . . . . . . . . . . . Robot Schematics Acquired 7 | . . . . . . . . . . 7 . . . . . . . . . . . . Robots Built . | . . . . . . . . . . . . . . . . . . . . . . . Matter . | . . . . . . . . . . . . . . . . . . . . . . . Time . | . . . . . . . . . . . . . . . . . . . . . . . Total Robot Build Rating . | . . . . . . . . . . . . . . . . . . . . . . . Part Schematics Acquired 10 | . . . . . 2 . . . . 7 . 1 . . . . . . . . . . Parts Built 1 | . . . . . . . . . . . . 1 . . . . . . . . . . Matter 102 | . . . . . . . . . . . . 102 . . . . . . . . . . Time 25 | . . . . . . . . . . . . 25 . . . . . . . . . . Total Part Build Rating 1 | . . . . . . . . . . . . 1 . . . . . . . . . . Parts Repaired 3 | . . . . . . 3 . . . . . . . . . . . . . . . . Time 127 | . . . . . . 127 . . . . . . . . . . . . . . . . Parts Recycled . | . . . . . . . . . . . . . . . . . . . . . . . Recycled Matter . | . . . . . . . . . . . . . . . . . . . . . . . Retrieved Matter . | . . . . . . . . . . . . . . . . . . . . . . . Retrieved Components 3 | . 3 . . . . . . . . . . . . . . . . . . . . . Parts Scanalyzed 3 | . . . . . 3 . . . . . . . . . . . . . . . . . Part Schematics Acquired 2 | . . . . . 2 . . . . . . . . . . . . . . . . . Parts Damaged . | . . . . . . . . . . . . . . . . . . . . . . . Bothacking | -11 -10 -10 -10 -9 -8 -7 -6 -6 -6 -6 -5 -5 -5 -5 -5 -4 -4 -3 -3 -2 -1 -1 ------------ Run | Scr Mat Min Exi Min Mat Fac Fac Low Low Dat Pro Fac Upp Upp War Pro Fac Res Qua Res Acc Com Used RIF Installer . | . . . . . . . . . . . . . . . . . . . . . . . Robots Hacked . | . . . . . . . . . . . . . . . . . . . . . . . Non-combat . | . . . . . . . . . . . . . . . . . . . . . . . Combat . | . . . . . . . . . . . . . . . . . . . . . . . Robot Hacks Applied . | . . . . . . . . . . . . . . . . . . . . . . . Relay Couplers Released 1 | . . . . . . . . . . . . . . . . . . . 1 . . . Machine Destruction 1 | . . . . . . . . . . . . . . . . . . . 1 . . . Robots Rewired . | . . . . . . . . . . . . . . . . . . . . . . . Allies Hacked . | . . . . . . . . . . . . . . . . . . . . . . . Hacks Repelled . | . . . . . . . . . . . . . . . . . . . . . . . Allies | -11 -10 -10 -10 -9 -8 -7 -6 -6 -6 -6 -5 -5 -5 -5 -5 -4 -4 -3 -3 -2 -1 -1 -------- Run | Scr Mat Min Exi Min Mat Fac Fac Low Low Dat Pro Fac Upp Upp War Pro Fac Res Qua Res Acc Com Total Allies 4 | . . 3 . . . . . . . . 1 . . . . . . . . . . . Largest Group 3 | . . 3 3 3 3 . . . . . 1 1 . . . . . . . . . . Highest-Rated Group 94 | . . 40 40 40 40 . . . . . 94 94 . . . . . . . . . . Highest-Rated Ally 94 | . . 16 16 16 16 . . . . . 94 94 . . . . . . . . . . Total Orders 1 | . . . . . . . 1 . . . . . . . . . . . . . . . EXPLORE 1 | . . . . . . . 1 . . . . . . . . . . . . . . . Ally Attacks 75 | . . . . 24 30 . . . . . 18 3 . . . . . . . . . . Total Damage 1151 | . . . . 202 345 . . . . . 513 91 . . . . . . . . . . Kills 12 | . . . . 8 3 . . . . . 1 . . . . . . . . . . . Allies Corrupted . | . . . . . . . . . . . . . . . . . . . . . . . Allies Melted . | . . . . . . . . . . . . . . . . . . . . . . . Intel | -11 -10 -10 -10 -9 -8 -7 -6 -6 -6 -6 -5 -5 -5 -5 -5 -4 -4 -3 -3 -2 -1 -1 ------- Run | Scr Mat Min Exi Min Mat Fac Fac Low Low Dat Pro Fac Upp Upp War Pro Fac Res Qua Res Acc Com Robot Analysis Total . | . . . . . . . . . . . . . . . . . . . . . . . Derelict Logs Recovered 8 | . . . . 1 . . . 3 1 . 2 . . . . 1 . . . . . . Drone Launches 2 | . . . . . . . 2 . . . . . . . . . . . . . . . Drone Recoveries . | . . . . . . . . . . . . . . . . . . . . . . . Exploration | -11 -10 -10 -10 -9 -8 -7 -6 -6 -6 -6 -5 -5 -5 -5 -5 -4 -4 -3 -3 -2 -1 -1 ------------- Run | Scr Mat Min Exi Min Mat Fac Fac Low Low Dat Pro Fac Upp Upp War Pro Fac Res Qua Res Acc Com Turns Passed 19759 | 76 321 328 404 619 1014 1487 503 748 595 136 675 357 526 1297 595 1278 910 1360 3234 1129 1771 396 Spaces Moved 9003 | 35 115 156 219 293 446 722 264 372 324 83 392 165 293 638 288 607 442 491 1252 377 504 525 Core 579 | 2 . . . . . . . . . . . . . . . . . . . . 53 524 Treads 8424 | 33 115 156 219 293 446 722 264 372 324 83 392 165 293 638 288 607 442 491 1252 377 451 1 Legs . | . . . . . . . . . . . . . . . . . . . . . . . Wheels . | . . . . . . . . . . . . . . . . . . . . . . . Hover . | . . . . . . . . . . . . . . . . . . . . . . . Flight . | . . . . . . . . . . . . . . . . . . . . . . . Fastest Speed 50 | 50 160 160 160 200 175 159 159 159 159 161 161 161 161 161 161 163 160 170 161 155 50 50 Average Speed 165 | 153 160 160 175 200 178 159 159 159 160 161 161 161 161 161 171 164 163 170 167 174 251 67 Slowest Speed 275 | 160 160 160 200 200 200 159 159 159 161 161 161 161 161 161 183 183 195 190 170 275 275 275 Overloaded Moves . | . . . . . . . . . . . . . . . . . . . . . . . Propulsion Burnouts . | . . . . . . . . . . . . . . . . . . . . . . . Robots Hopped . | . . . . . . . . . . . . . . . . . . . . . . . Cave-ins Triggered . | . . . . . . . . . . . . . . . . . . . . . . . Exploration Rate (%) 37 | 4 25 25 60 73 38 25 11 44 43 69 59 4 43 67 43 59 11 16 87 12 20 21 Regions Visited 22 Branch Regions 13 Pre-discovered Areas 4 | . 1 . 1 . . . . . . 1 . . . . . 1 . . . . . . Known Exits Taken 16 | . . . . . . 1 1 1 1 1 1 1 1 1 1 1 1 1 1 1 1 . Unknown Exits Taken 6 | 1 1 1 1 1 1 . . . . . . . . . . . . . . . . . Scrap Searched 14 | . . . . 2 . . . 2 1 . 3 . 1 3 . 2 . . . . . . Spaces Dug 138 | . . . . . 6 38 5 1 2 . 13 1 1 9 . 2 3 20 13 2 22 . Terrain Destroyed 4081 | . . . . . 9 62 6 1 2 . 50 10 1 46 5 6 5 28 30 3 157 3660 Melee 84 | . . . . . 1 24 5 1 2 . 3 1 1 9 . . 2 19 12 2 2 . Projectile 36 | . . . . . . . 1 . . . . . . 2 . 5 3 3 6 1 15 . AOE 3961 | . . . . . 8 38 . . . . 47 9 . 35 5 1 . 6 12 . 140 3660 Actions | -11 -10 -10 -10 -9 -8 -7 -6 -6 -6 -6 -5 -5 -5 -5 -5 -4 -4 -3 -3 -2 -1 -1 --------- Run | Scr Mat Min Exi Min Mat Fac Fac Low Low Dat Pro Fac Upp Upp War Pro Fac Res Qua Res Acc Com Total 13131 | 48 183 235 241 315 584 965 318 518 388 84 417 242 326 839 390 814 607 954 2307 832 957 567 Wait 2103 | . 15 80 . 13 26 133 9 118 28 . 4 31 3 123 61 93 39 226 694 309 93 5 Move 8980 | 34 114 155 218 292 445 721 263 371 323 82 391 164 292 637 287 606 441 490 1251 376 503 524 Hop . | . . . . . . . . . . . . . . . . . . . . . . . Pick Up 177 | 4 7 . 16 3 23 12 5 6 5 . . 7 2 . 7 7 15 11 25 5 17 . Fast Attach 112 | 7 1 . . . 3 8 2 2 1 . . 4 2 . 6 4 5 7 31 17 5 7 Attach 69 | . . . 1 1 3 3 2 1 1 . . 2 1 . 4 5 9 7 12 1 8 8 Detach 14 | . . . . . . . . . . . . . . . . . 2 . 3 . 2 7 Swap 290 | . 2 . 2 . 14 18 6 4 10 2 9 7 12 30 6 31 15 33 37 9 43 . Drop 264 | . 6 . 4 . 14 14 7 8 11 . . 14 3 4 17 15 21 15 52 24 29 6 Fire 956 | 3 38 . . 6 48 29 16 7 6 . 10 10 9 35 2 53 55 141 163 83 241 1 Melee 141 | . . . . . 1 25 6 1 3 . 3 2 1 10 . . 4 24 37 8 16 . Ram 1 | . . . . . . . . . . . . . . . . . . . . . . 1 Kick . | . . . . . . . . . . . . . . . . . . . . . . . Crush 15 | . . . . . 7 2 1 . . . . 1 1 . . . 1 . 2 . . . Escape Stasis 8 | . . . . . . . . . . . . . . . . . . . . . . 8 Rewire . | . . . . . . . . . . . . . . . . . . . . . . . Trap . | . . . . . . . . . . . . . . . . . . . . . . . Miscellaneous 1 | . . . . . . . 1 . . . . . . . . . . . . . . . Route ------- -11/Scrapyard -10/Materials -10/Mines (discovered 2 exits: [*Mat] / *Exi) -10/Exiles -9/Mines -8/Materials -7/Factory -6/Factory -6/Lower Caves -6/Lower Caves -6/Data Miner -5/Proximity Caves -5/Factory (discovered 5 exits: Fac x3 / *Upp x2) -5/Upper Caves -5/Upper Caves -5/Warlord -4/Proximity Caves -4/Factory -3/Research (discovered 3 exits: Arm / *Qua x2) -3/Quarantine -2/Research -1/Access -1/Command To Fleet Rendezvous History --------- Turn | Location | Event 26 | -11/Scrapyard | Discovered new exit (range 16) 77 | -11/Scrapyard | Entered Materials 303 | -10/Materials | Build established: Mutant 374 | -10/Materials | Discovered new exit (range 15) 398 | -10/Materials | Entered Mines 399 | -10/Mines | Met a Derelict bent on vengeance 403 | -10/Mines | Assisted by bots powering up and referring to "LRC-V3" 483 | -10/Mines | Discovered new exit (range 12) 502 | -10/Mines | Deemed a non-threat by the Exiles lab entrance 502 | -10/Mines | Discovered new exit (range 5) 726 | -10/Mines | Entered Exiles 726 | -10/Exiles | Accompanied by 3 allies 766 | -10/Exiles | Met 8R-AWN 792 | -10/Exiles | Met EX-HEX 890 | -10/Exiles | Met EX-DEC 928 | -10/Exiles | Met EX-BIN 960 | -10/Exiles | Learned location of Zion (-7) 1056 | -10/Exiles | Discovered new exit (range 10) 1130 | -10/Exiles | Entered Mines 1130 | -9/Mines | Accompanied by 3 allies 1206 | -9/Mines | Learned Materials terminal intel 1364 | -9/Mines | Build established: Hauler-Mutant 1697 | -9/Mines | Discovered new exit (range 12) 1749 | -9/Mines | Entered Materials 1749 | -8/Materials | Accompanied by 3 allies 1749 | -8/Materials | Evolved 4 slots: Propulsion x2, Utility x2 1750 | -8/Materials | Loaded intel: 12 terminal locations 2676 | -8/Materials | Discovered new exit (range 16) 2763 | -8/Materials | Entered Factory 2763 | -7/Factory | Evolved 2 slots: Propulsion x2 3862 | -7/Factory | Repaired Adv. Treads 3999 | -7/Factory | Repaired Arm. Treads 4071 | -7/Factory | Repaired Cld. Particle Cannon 4109 | -7/Factory | Discovered new exit (range 12) 4129 | -7/Factory | Identified exit to Factory 4250 | -7/Factory | Entered another Factory area 4250 | -6/Factory | Evolved 2 slots: Power x1, Utility x1 4653 | -6/Factory | Discovered new exit (range 8) 4664 | -6/Factory | Identified exit to Lower Caves 4753 | -6/Factory | Entered Lower Caves 5218 | -6/Lower Caves | Learned location of 1 exit from Factory 5224 | -6/Lower Caves | Identified exit to Lower Caves 5480 | -6/Lower Caves | Learned Factory machine intel 5501 | -6/Lower Caves | Entered another Lower Caves area 5519 | -6/Lower Caves | Spotted B-75 Beast 5557 | -6/Lower Caves | Destroyed B-75 Beast 5840 | -6/Lower Caves | Learned location of 2 exits from Factory 5869 | -6/Lower Caves | Build established: Scavenger-Mutant 6088 | -6/Lower Caves | Discovered new exit (range 7) 6094 | -6/Lower Caves | Identified exit to Data Miner 6096 | -6/Lower Caves | Entered Data Miner 6096 | -6/Data Miner | Discovered new exit (range 6) 6127 | -6/Data Miner | Met Data Miner 6158 | -6/Data Miner | Learned location of Section 7 (-2) 6158 | -6/Data Miner | Acquired the access code to Warlord's prototype stash 6187 | -6/Data Miner | Received God Mode back door access code from Data Miner 6227 | -6/Data Miner | Identified exit to Proximity Caves 6232 | -6/Data Miner | Entered Proximity Caves 6266 | -5/Proximity Caves | Spotted B-75 Beast 6286 | -5/Proximity Caves | Escorted by Enhanced Grunt 6459 | -5/Proximity Caves | Learned location of 1 exit from Factory 6805 | -5/Proximity Caves | Learned Factory trap positions 6892 | -5/Proximity Caves | Discovered new exit (range 9) 6903 | -5/Proximity Caves | Identified exit to Factory 6907 | -5/Proximity Caves | Entered Factory 6907 | -5/Factory | Accompanied by 1 ally 6907 | -5/Factory | Evolved 2 slots: Utility x2 6908 | -5/Factory | Identified exit to Factory 6908 | -5/Factory | Identified exit to Upper Caves 6909 | -5/Factory | Loaded intel: 94 trap records 6910 | -5/Factory | Loaded intel: 267 machine locations 7043 | -5/Factory | Fabricated Humpback (x1) 7153 | -5/Factory | Found Hvy. Reactive Plating 7157 | -5/Factory | Found Hvy. Reactive Plating 7160 | -5/Factory | Found Hvy. Reactive Plating 7242 | -5/Factory | Discovered exit to Upper Caves (range 7) 7264 | -5/Factory | Entered Upper Caves 7275 | -5/Upper Caves | Attracted the attention of an 0b10 checkpoint 7415 | -5/Upper Caves | Spotted B-75 Beast 7443 | -5/Upper Caves | Destroyed B-75 Beast 7544 | -5/Upper Caves | Found Alien Artifact 7544 | -5/Upper Caves | Identified Core Expander 7544 | -5/Upper Caves | Installed Core Expander, added new Utility slot 7771 | -5/Upper Caves | Discovered new exit (range 10) 7783 | -5/Upper Caves | Identified exit to Upper Caves 7790 | -5/Upper Caves | Entered another Upper Caves area 8795 | -5/Upper Caves | Spotted B-75 Beast 8816 | -5/Upper Caves | Destroyed B-75 Beast 9054 | -5/Upper Caves | Discovered new exit (range 7) 9064 | -5/Upper Caves | Identified exit to Warlord 9087 | -5/Upper Caves | Entered Warlord 9141 | -5/Warlord | System corruption cleaned by Quarantine Array 9271 | -5/Warlord | Met Warlord 9287 | -5/Warlord | Opened Warlord's prototype stash 9296 | -5/Warlord | Warlord's base attacked by MAIN.C 9298 | -5/Warlord | Found Prototype Reactor 9298 | -5/Warlord | Identified Vortex Chain Reactor 9311 | -5/Warlord | Found Prototype Device 9311 | -5/Warlord | Identified Exp. Focal Shield 9556 | -5/Warlord | Warlord forces counterattacked 9622 | -5/Warlord | Spotted Executioner 9631 | -5/Warlord | Destroyed Executioner 9662 | -5/Warlord | Discovered new exit (range 12) 9681 | -5/Warlord | Identified exit to Proximity Caves 9682 | -5/Warlord | Entered Proximity Caves 10282 | -4/Proximity Caves | Learned location of Quarantine (-3) 10340 | -4/Proximity Caves | Spotted B-86 Titan 10402 | -4/Proximity Caves | Destroyed B-86 Titan 10750 | -4/Proximity Caves | Attracted the attention of an 0b10 checkpoint 10944 | -4/Proximity Caves | Discovered exit to Factory (range 11) 10960 | -4/Proximity Caves | Entered Factory 10960 | -4/Factory | Evolved 2 slots: Utility x2 10988 | -4/Factory | Spotted B-86 Titan 11008 | -4/Factory | Destroyed B-86 Titan 11023 | -4/Factory | Found Quantum Capacitor 11798 | -4/Factory | Discovered new exit (range 15) 11823 | -4/Factory | Identified exit to Research 11870 | -4/Factory | Entered Research 11870 | -3/Research | Evolved 2 slots: Utility x2 12073 | -3/Research | Spotted B-86 Titan 12091 | -3/Research | Destroyed B-86 Titan 12093 | -3/Research | Build established: Hauler-Mutant 12539 | -3/Research | Destroyed 7 combat bots 12654 | -3/Research | Found Enh. Force Lance 12701 | -3/Research | Identified exit to Armory 12701 | -3/Research | Identified exit to Quarantine 12775 | -3/Research | Incoming investigation squad redirected 12834 | -3/Research | Build established: Scavenger-Mutant 13120 | -3/Research | First assault squad dispatched 13148 | -3/Research | Incoming assault squad redirected 13182 | -3/Research | Build established: Hauler-Mutant 13230 | -3/Research | Entered Quarantine 13924 | -3/Quarantine | Found Alien Impact Weapon 13951 | -3/Quarantine | Found Alien Artifact 13951 | -3/Quarantine | Identified Stasis Generator 14140 | -3/Quarantine | Found Alien Artifact 14140 | -3/Quarantine | Identified Matter Drive 14254 | -3/Quarantine | Garrison activated, responded to threat 14563 | -3/Quarantine | Cryocooling Duct disabled 14578 | -3/Quarantine | Ambient heat levels rising (+20) 14578 | -3/Quarantine | Non-combat units ordered to evacuate 15006 | -3/Quarantine | Found Alien Energy Cannon 15006 | -3/Quarantine | Identified Core Cannon 15258 | -3/Quarantine | Build established: Scavenger-Mutant 15506 | -3/Quarantine | Found Alien Artifact 15506 | -3/Quarantine | Identified Core Reset Matrix 15506 | -3/Quarantine | Identified Core Stripper 15506 | -3/Quarantine | Used Core Reset Matrix 15510 | -3/Quarantine | Detected hypermatrix surge 15510 | -3/Quarantine | Sensed 5 artifacts in vicinity 15571 | -3/Quarantine | Found Unknown Protection 15571 | -3/Quarantine | Identified Hvy. Insulated Plating 15592 | -3/Quarantine | Spotted Alpha 7 15638 | -3/Quarantine | Destroyed Alpha 7 15648 | -3/Quarantine | Found Prototype Processor 15648 | -3/Quarantine | Identified Exp. Target Analyzer 15654 | -3/Quarantine | Found Prototype Ballistic Gun 15654 | -3/Quarantine | Identified Multirail 15659 | -3/Quarantine | Found Unknown Device 15659 | -3/Quarantine | Identified Antimissile System 15689 | -3/Quarantine | Found Sigix Terminator 15761 | -3/Quarantine | Found Subatomic Replicator 15930 | -3/Quarantine | Found Prototype Device 15930 | -3/Quarantine | Identified Exp. Shield Generator 16442 | -3/Quarantine | Discovered new exit (range 9) 16463 | -3/Quarantine | Identified exit to Research 16464 | -3/Quarantine | Entered Research 16464 | -2/Research | Warlord forces began assault on 0b10 16464 | -2/Research | Evolved 2 slots: Power x1, Utility x1 16563 | -2/Research | Met up with Warlord 16564 | -2/Research | Found Prototype Device 16565 | -2/Research | Identified Exp. Force Field 16570 | -2/Research | Found Exp. Force Field 16574 | -2/Research | Research machine network offline 16663 | -2/Research | Found Prototype Processor 16663 | -2/Research | Identified Exp. Signal Interpreter 16730 | -2/Research | Borebot progress halted 16783 | -2/Research | Borebot progress halted 17068 | -2/Research | Warlord destroyed during the assault 17113 | -2/Research | Borebot progress halted 17156 | -2/Research | Spotted Striker 17167 | -2/Research | Destroyed Striker 17177 | -2/Research | Discovered new exit (range 3) 17180 | -2/Research | Identified exit to Access 17195 | -2/Research | Attacked by Warlord forces 17367 | -2/Research | Borebot progress halted 17383 | -2/Research | Found Enh. Force Lance 17425 | -2/Research | Found Unknown Treads 17425 | -2/Research | Identified Megatreads 17550 | -2/Research | Borebot progress halted 17593 | -2/Research | Entered Access 17593 | -1/Access | Evolved 2 slots: Power x1, Utility x1 17846 | -1/Access | Spotted B-99 Colossus 17880 | -1/Access | Destroyed B-99 Colossus 17960 | -1/Access | Found Unknown Protection 17960 | -1/Access | Identified Hvy. Reflective Plating 18657 | -1/Access | Energy Cycler disabled 18867 | -1/Access | Destroyed 13 combat bots 19001 | -1/Access | Destroyed 16 combat bots 19125 | -1/Access | First assault squad dispatched 19147 | -1/Access | Incoming assault squad redirected 19320 | -1/Access | High security lockdown imminent 19338 | -1/Access | Used Subatomic Replicator to create Supercharged Sigix Terminator 19360 | -1/Access | Discovered new exit (range 9) 19363 | -1/Access | Identified exit to Command 19364 | -1/Access | Entered Command 19622 | -1/Command | Fired Supercharged Sigix Terminator 19622 | -1/Command | High security lockdown imminent 19622 | -1/Command | MAIN.C activated Command garrisons 19643 | -1/Command | Destroyed 174 combat bots 19750 | -1/Command | Spotted M Guard 19755 | -1/Command | Spotted M Guard 19756 | -1/Command | Discovered new exit (range 5) 19759 | -1/Command | Identified exit to Surface 19760 | *** | Heading to fleet! Last Messages --------------- 19673_ Acquired 90 matter. 19685_ Imp. System Backup Module purges 1% of system corruption (5%). 19734_ System corrupted: Matter fused (-10). 19745_ Triggered Stasis Trap. 19745_ A bubble of rippling energy engulfs the area. 19745_ Field strength at 94. 19746_ Field strength at 76. 19749_ Field strength at 63. 19750_ Field strength at 57. 19751_ Field strength at 51. 19752_ Field strength at 38. 19753_ Access Shell breached. 19753_ Field strength at 29. 19754_ Field strength at 23. 19755_ Field strength at 17. 19756_ Stasis field depleted. 19756_ EXIT=FOUND 19758_ The unstable cave ceiling collapses. 19758_ M Guard crushed by falling debris. 19759_ EXIT=IDENTIFIED: SURFACE Map ----- +----------------------------------------------------+ | ?????????????????????????????????????????????????? | | ?????????????????????????????????????????????????? | | ?????????????????????????????????????????????????? | | ?????????????????????????????????????????????????? | | ?????????????????????????????????????????????????? | | ?????????????????????????????????????????????????? | | ?????????????????????????????????????????????????? | | ?????????????????????????????????????????????????? | | ?????????????????????##++++#?????????????????????? | | ?????????????????????#^ #????????????????????? | | ????????????????????## #????????????????????? | | ????????????????????? ????????????????????? | | ????????????????????## g ^#????????????????????? | | ????????????????????# ^^ ????????????????????? | | ???????????????????###^ #????????????????????? | | ???????????????????# ^ ????????????????????? | | ???????????????????# ^###??????????????????? | | ?????????????????### ###????????????????? | | ?????????????????# #????????????????? | | ?????????????????# #????????????????? | | ?????????????????# ########?????????? | | ?????????????????# ##????????? | | ?????????????????# " Y #????????? | | ??????????????????????" # #????????? | | ??????????????????????" "" ##### #????????? | | ??????????????????????" "@ " #???# #????????? | | ??????????????????# " ##???# #????????? | | ??????????????????# """""" #????# #????????? | | ??????????????????# ????? #????# #????????? | | ??????????????????# ????? #????# #????????? | | ??????????????????# ????? #????# #????????? | | ??????????????????#??????#######????# #????????? | | ????????????????????????????????????# #????????? | | ????????????????????????????????????# #????????? | | ???????? ????????????????????????# #????????? | | ???????# #???????????????????????# #????????? | | ???????# #######?????????????????# #????????? | | ???????# #?????????????????# #????????? | | ???????# ######????????????# #????????? | | ???????# #????????????# #????????? | | ???????# #??########### #????????? | | ???????# #??# #????????? | | ???????# """ #??# ##????????? | | ???????#| "T" #??# "" #?????????? | | ######## " " #### """ #?????????? | | ! # ! R" #?????????? | | # * """ #?????????? | | + "" #?????????? | | # #?????????? | | # #?????????? | +----------------------------------------------------+ Best States ------------- Heat Dissipation 121 Coolant Potential 100 Energy Generation 77 Energy Capacity 1050 Matter Stores 300 Matter Capacity 300 Sight Range 16 Robot Scan Range 16 Terrain Scan Density 10 EM Shielding 4 Armor Coverage 2400 Resistance: KI 40 Resistance: TH 30 Resistance: EM 30 Power Shielding 33 Weapon Shielding 66 Point Defense Rating 240 Weapon Cycling 20 Phase Shifting 15 Evasion (%) 55 Targeting Accuracy 8 Target Analysis 12 Core Analysis 10 Recoil Reduction 6 Particle Charging 20 Defensive Hacking 12 Item Schematics ----------------- None Robot Schematics ------------------ None Fabricated ------------ Humpback | x1 | -5/Factory Alien Tech Used ----------------- Core Expander Stasis Generator Matter Drive Core Cannon Core Reset Matrix Subatomic Replicator Supercharged Sigix Terminator Achievements -------------- WMD Challenges ------------ None Game ------ Seed TrackerPortableGenerator Manual? 0 Play Time 02:18:03 Cumulative 517.1 hours Start 2020.05.09 @ 11:04:10 End 2020.05.09 @ 13:29:13 Sessions 1 Manual Loads 0 Difficulty Rogue Special Mode None Game No. 843 Rogue 843 Adventurer 0 Explorer 0 Win Type 2 Total 46 Types 30/1/6/7/2/0/0 Lore% 94 Gallery% 93 Achievement% 80 Wizard Run 0 Options --------- ASCII 1 Keyboard 0 Movement Numpad Keybinds 0 Fullscreen 0 Font 14/SmallcapsGlow Map View 76x50 Tactical HUD 1 Map Filters NONE Filters NONE Steam 1 RUN: 3037c6f0-9aeb-4162-abba-0ec3933d1b6d